[Event "Vugar Gashimov Memorial Blitz 2024"]
[Site "Shusha"]
[Date "2024.09.28"]
[Round "4.3"]
[White "Nepomniachtchi, Ian"]
[Black "Rapport, Richard"]
[Result "1-0"]
[ECO "B18"]
[WhiteElo "2755"]
[BlackElo "2715"]
[Annotator "ChessBase"]
[PlyCount "114"]
[EventDate "2024.09.28"]
[EventType "tourn"]
[EventCountry "AZE"]
[SourceTitle "playchess.com"]
[Source "ChessBase"]
[SourceQuality "1"]
[TimeControl "180+2"]

1. e4 {[%emt 0:00:01]} c6 {[%emt 0:00:00]} 2. d4 {[%emt 0:00:02]} d5 {[%emt 0:00:01]} 3. Nc3 {[%emt 0:00:01]} dxe4 {[%emt 0:00:02]} 4. Nxe4 {[%emt 0:00:01]} Bf5 {[%emt 0:00:01]} 5. Ng3 {[%emt 0:00:02]} Bg6 {[%emt 0:00:01]} 6. c3 {[%emt 0:00:00]} e6 {[%emt 0:00:01]} 7. N1e2 {[%emt 0:00:04]} Bd6 {[%emt 0:00:08]} 8. h4 {[%emt 0:00:05]} h6 {[%emt 0:00:15]} 9. Nf4 {[%emt 0:00:01]} Bxf4 {[%emt 0:00:01]} 10. Bxf4 {[%emt 0:00:02]} Nf6 {[%emt 0:00:04]} 11. Be2 {[%emt 0:00:04]} Nbd7 {[%emt 0:00:02]} 12. Qb3 {[%emt 0:00:05]} Nb6 {[%emt 0:00:07]} 13. h5 {[%emt 0:00:04]} Bh7 {[%emt 0:00:02]} 14. Qa3 {[%emt 0:00:07]} a5 {[%emt 0:00:08]} 15. O-O {[%emt 0:00:07]} Nbd5 {[%emt 0:00:04]} 16. Be5 {[%emt 0:00:11]} b5 {[%emt 0:00:02]} 17. c4 {[%emt 0:00:03]} bxc4 {[%emt 0:00:05]} 18. Bxc4 {[%emt 0:00:01]} Nb4 {[%emt 0:00:01]} 19. Qf3 {[%emt 0:00:11]} O-O {[%emt 0:00:03]} 20. a3 {[%emt 0:00:06]} Nbd5 {[%emt 0:00:02]} 21. Rac1 {[%emt 0:00:02]} Nd7 {[%emt 0:00:03]} 22. Bd3 {[%emt 0:00:26]} Bxd3 {[%emt 0:00:01]} 23. Qxd3 {[%emt 0:00:01]} Re8 {[%emt 0:00:04]} 24. Ne4 {[%emt 0:00:16]} Nxe5 {[%emt 0:00:11]} 25. dxe5 {[%emt 0:00:01]} Qh4 {[%emt 0:00:03]} 26. Qf3 {[%emt 0:00:03]} Rab8 {[%emt 0:00:02]} 27. Rc4 {[%emt 0:00:05]} Qe7 {[%emt 0:00:08]} 28. Nd6 {[%emt 0:00:21]} Rf8 {[%emt 0:00:04]} 29. Qe2 {[%emt 0:00:01]} Qg5 {[%emt 0:00:04]} 30. g3 {[%emt 0:00:13]} Rb3 {[%emt 0:00:01]} 31. Rfc1 {[%emt 0:00:09]} c5 {[%emt 0:00:32]} 32. R1c2 {[%emt 0:00:05]} Ne3 {[%emt 0:00:05]} 33. Ne4 {[%emt 0:00:09]} Qxe5 {[%emt 0:00:01]} 34. fxe3 {[%emt 0:00:02]} f5 {[%emt 0:00:01]} 35. Nc3 {[%emt 0:00:11]} Qxg3+ {[%emt 0:00:03]} 36. Kf1 {[%emt 0:00:08]} f4 {[%emt 0:00:03]} 37. Rxf4 {[%emt 0:00:03]} Rbb8 {[%emt 0:00:05]} 38. Ne4 {[%emt 0:00:08]} Rxf4+ {[%emt 0:00:43]} 39. exf4 {[%emt 0:00:00]} Qxf4+ {[%emt 0:00:01]} 40. Nf2 {[%emt 0:00:01]} Qf5 {[%emt 0:00:10]} 41. Rc3 {[%emt 0:00:09]} Rf8 {[%emt 0:00:02]} 42. Rg3 {[%emt 0:00:05]} Rf6 {[%emt 0:00:05]} 43. Kg1 {[%emt 0:00:06]} Kh8 {[%emt 0:00:08]} 44. Ne4 {[%emt 0:00:10]} Qe5 {[%emt 0:00:05]} 45. Qe3 {[%emt 0:00:11]} Rf5 {[%emt 0:00:04]} 46. Nf2 {[%emt 0:00:00]} Qxb2 {[%emt 0:00:04]} 47. Rf3 {[%emt 0:00:06]} Qb1+ {[%emt 0:00:09]} 48. Kg2 {[%emt 0:00:01]} Rg5+ {[%emt 0:00:06]} 49. Rg3 {[%emt 0:00:00]} Rxh5 {[%emt 0:00:02]} 50. Qxe6 {[%emt 0:00:02]} Qb7+ {[%emt 0:00:03]} 51. Kg1 {[%emt 0:00:01]} Qb8 {[%emt 0:00:10]} 52. Qg6 {[%emt 0:00:03]} Qe5 {[%emt 0:00:01]} 53. Kg2 {[%emt 0:00:03]} c4 {[%emt 0:00:02]} 54. a4 {[%emt 0:00:00]} Qd5+ {[%emt 0:00:01]} 55. Ne4 {[%emt 0:00:02]} Qe5 {[%emt 0:00:03]} 56. Rf3 {[%emt 0:00:04]} Rh2+ {[%emt 0:00:08]} 57. Kg1 {[%emt 0:00:01]} Qb8 {[%emt 0:00:08]} 1-0

[Event "Vugar Gashimov Memorial Blitz 2024"]
[Site "Shusha"]
[Date "2024.09.28"]
[Round "4.4"]
[White "Artemiev, Vladislav"]
[Black "Abdusattorov, Nodirbek"]
[Result "1/2-1/2"]
[ECO "D13"]
[WhiteElo "2701"]
[BlackElo "2766"]
[Annotator "TA"]
[PlyCount "95"]
[EventDate "2024.09.28"]
[EventType "tourn"]
[EventCountry "AZE"]
[SourceTitle "playchess.com"]
[Source "ChessBase"]
[SourceQuality "1"]
[TimeControl "180+2"]

{[%evp 12,95,25,8,16,-5,20,22,30,13,18,11,14,9,33,35,37,21,23,32,43,22,17,0,0,0,0,0,0,0,0,0,0,0,0,0,0,0,0,0,0,-6,0,0,0,0,0,0,0,0,0,0,0,0,0,0,0,0,0,0,0,0,0,0,0,0,0,0,0,-20,0,0,0,0,0,0,0,0,0,0,0,0,0,0,0,0]} 1. d4 {[%emt 0:00:02]} d5 {[%emt 0:00:01]} 2. Nf3 {[%emt 0:00:05]} Nf6 {[%emt 0:00:02]} 3. c4 {[%emt 0:00:01]} c6 {[%emt 0:00:04]} 4. Nc3 {[%emt 0:00:02]} a6 {[%emt 0:00:01]} 5. cxd5 {[%emt 0:00:02]} cxd5 {[%emt 0:00:01]} 6. Bf4 {[%emt 0:00:01]} Nc6 {[%emt 0:00:02]} 7. Rc1 {[%emt 0:00:02]} Nh5 {[%emt 0:00:04]} 8. Be5 {[%emt 0:00:07]} e6 {[%emt 0:00:11]} 9. e3 {[%emt 0:00:03]} Be7 {[%emt 0:00:08]} 10. h3 {[%emt 0:00:05]} O-O {[%emt 0:00:06]} 11. Bh2 {[%emt 0:00:09]} Nf6 {[%emt 0:00:02]} 12. Bd3 {[%emt 0:00:08]} Bd7 {[%emt 0:00:08]} 13. O-O {[%emt 0:00:04]} Rc8 {[%emt 0:00:16]} 14. a3 {[%emt 0:00:22][%cal Ba2a3,Ba3a4][%mdl 32]} Na5 {[%emt 0:00:05]} 15. Ne5 {[%emt 0:00:05]} b5 {[%emt 0:00:19]} 16. a4 {[%emt 0:00:15][%cal Ra4b5]} Nc4 {[%emt 0:00:05] The position is equal.} 17. axb5 {[%emt 0:00:49] [#] Strongly threatening Bxc4.} Nxb2 {[%emt 0:00:31]} 18. Qd2 {[%emt 0:00:02]} Nxd3 {[%emt 0:00:02]} 19. Qxd3 {[%emt 0:00:01]} axb5 {[%emt 0:00:01]} 20. Nxb5 {[%emt 0:00:30]} Bxb5 {[%emt 0:00:22]} 21. Qxb5 {[%emt 0:00:01]} Bd6 {[%emt 0:00:05]} 22. Nc6 {[%emt 0:00:23]} Bxh2+ {[%emt 0:00:03]} 23. Kxh2 {[%emt 0:00:01]} Qd6+ {[%emt 0:00:01]} 24. Kg1 {[%emt 0:00:01]} Rc7 {[%emt 0:00:21] [#] White must now prevent ...Rfc8.} 25. Qc5 {[%emt 0:00:13]} Qxc5 {[%emt 0:00:09]} 26. Rxc5 {[%emt 0:00:01]} Ne4 {[%emt 0:00:05]} 27. Rcc1 {[%emt 0:00:02]} f6 {[%emt 0:00:14]} ({Wrong is} 27... Rfc8 $2 28. Ne7+ Kf8 29. Nxc8 $18) 28. Nb4 {[%emt 0:00:04]} Rfc8 {[%emt 0:00:02]} 29. Nd3 {[%emt 0:00:12]} Kf7 {[%emt 0:00:04]} 30. Ra1 {[%emt 0:00:03]} Rc2 {[%emt 0:00:05]} 31. Ra7+ {[%emt 0:00:03]} R8c7 {[%emt 0:00:03]} 32. Rfa1 {[%emt 0:00:01][%cal Od3c5] Threatens to win with Nc5!} g5 {[%emt 0:00:17]} 33. Nc5 {[%emt 0:00:00]} Rxa7 {[%emt 0:00:05]} 34. Rxa7+ {[%emt 0:00:02]} Kg6 {[%emt 0:00:01]} 35. Nxe4 {[%emt 0:00:04]} dxe4 $11 {[%emt 0:00:01][%mdl 4096] Endgame. KR-KR} 36. Re7 {[%emt 0:00:03]} Rc6 {[%emt 0:00:01]} 37. g4 {[%emt 0:00:02]} h5 {[%emt 0:00:01]} 38. Kg2 {[%emt 0:00:01]} h4 {[%emt 0:00:01]} 39. Kg1 {[%emt 0:00:03]} f5 {[%emt 0:00:01]} 40. Kg2 {[%emt 0:00:03]} Kf6 {[%emt 0:00:01]} 41. Re8 {[%emt 0:00:01]} Rc2 {[%emt 0:00:05]} 42. gxf5 {[%emt 0:00:02]} exf5 {[%emt 0:00:01]} 43. Rf8+ {[%emt 0:00:01]} Kg6 {[%emt 0:00:01]} 44. Rg8+ {[%emt 0:00:01]} Kh6 {[%emt 0:00:01]} 45. Rf8 {[%emt 0:00:02]} Kg6 {[%emt 0:00:03]} 46. Rg8+ {[%emt 0:00:00]} Kf6 {[%emt 0:00:01]} 47. Rf8+ {[%emt 0:00:01]} Kg6 {[%emt 0:00:01]} 48. Rg8+ {[%emt 0:00:01] Weighted Error Value: White=0.04 (flawless) /Black=0.03 (flawless) .  OK:         	White=18    	Black=17} 1/2-1/2

[Event "Vugar Gashimov Memorial Blitz 2024"]
[Site "Shusha"]
[Date "2024.09.28"]
[Round "5.1"]
[White "Abdusattorov, Nodirbek"]
[Black "Mamedyarov, Shakhriyar"]
[Result "1-0"]
[ECO "C44"]
[WhiteElo "2766"]
[BlackElo "2733"]
[Annotator "TA"]
[PlyCount "91"]
[EventDate "2024.09.28"]
[EventType "tourn"]
[EventCountry "AZE"]
[SourceTitle "playchess.com"]
[Source "ChessBase"]
[SourceQuality "1"]
[TimeControl "180+2"]

{[%evp 13,91,0,0,0,0,0,0,0,0,0,24,0,10,0,11,0,0,-18,21,8,11,0,53,-3,0,0,43,41,60,7,17,9,13,5,12,10,58,43,127,121,125,133,127,120,127,118,127,122,135,141,127,119,164,164,167,162,173,169,256,290,303,299,283,276,332,348,345,326,297,253,258,271,2209,1787,302,295,292,273,4729,597]} 1. e4 {[%emt 0:00:01]} e5 {[%emt 0:00:00]} 2. Nf3 {[%emt 0:00:01]} Nc6 {[%emt 0:00:01]} 3. g3 {[%emt 0:00:02]} Nf6 {[%emt 0:00:05]} 4. d3 {[%emt 0:00:01]} g6 {[%emt 0:00:06]} 5. Bg2 {[%emt 0:00:03]} Bg7 {[%emt 0:00:00]} 6. O-O {[%emt 0:00:02]} d5 {[%emt 0:00:04]} 7. exd5 {[%emt 0:00:07]} Nxd5 {[%emt 0:00:01]} 8. Nc3 {[%emt 0:00:01]} Nxc3 {[%emt 0:00:09]} 9. bxc3 {[%emt 0:00:01]} O-O {[%emt 0:00:02]} 10. Nd2 {[%emt 0:00:12] The position is equal.} Re8 {[%emt 0:00:27]} 11. Rb1 {[%emt 0:00:02]} Na5 {[%emt 0:00:21]} 12. Ne4 {[%emt 0:00:05]} Rb8 {[%emt 0:00:03]} 13. Bg5 {[%emt 0:00:15]} f6 {[%emt 0:00:01]} 14. Be3 {[%emt 0:00:01]} b6 {[%emt 0:00:00]} 15. c4 {[%emt 0:00:25]} (15. Nc5 $5) 15... Be6 {[%emt 0:00:16]} 16. Re1 {[%emt 0:00:06]} Qd7 {[%emt 0:00:03]} 17. Bd2 {[%emt 0:00:15] [#] And now Bxa5 would win.} Nb7 {[%emt 0:00:33]} (17... Bg4 $1 $11 18. f3 Bf5) 18. f4 {[%emt 0:00:15]} (18. Nxf6+ $14 Bxf6 19. Bxb7) 18... Bg4 {[%emt 0:00:23]} 19. Qc1 {[%emt 0:00:07]} Bh3 {[%emt 0:00:14]} 20. Bxh3 {[%emt 0:00:13]} Qxh3 {[%emt 0:00:01]} 21. Bc3 {[%emt 0:00:01]} (21. fxe5 $14 fxe5 22. Bc3) 21... Nd6 $11 {[%emt 0:00:27]} 22. fxe5 {[%emt 0:00:01]} fxe5 {[%emt 0:00:01]} 23. Qd2 {[%emt 0:00:20]} Rf8 {[%emt 0:00:04]} 24. Qg2 {[%emt 0:00:00]} Qxg2+ {[%emt 0:00:03]} 25. Kxg2 {[%emt 0:00:01]} Rbe8 {[%emt 0:00:03] White stays focused until the end.} ({Better is} 25... Nf5 $14) 26. Bb4 $16 {[%emt 0:00:03]} Rd8 {[%emt 0:00:05]} 27. Bxd6 {[%emt 0:00:01]} cxd6 {[%emt 0:00:01]} 28. Rb5 {[%emt 0:00:01]} Rf7 {[%emt 0:00:03]} 29. Rd5 {[%emt 0:00:03]} Bf8 {[%emt 0:00:03]} 30. a4 {[%emt 0:00:02]} h6 {[%emt 0:00:12]} 31. Ra1 {[%emt 0:00:02]} Rb7 {[%emt 0:00:04]} 32. Rb1 {[%emt 0:00:02] White is more active.} Rc7 {[%emt 0:00:03]} 33. a5 {[%emt 0:00:03]} Rc6 {[%emt 0:00:02]} 34. axb6 {[%emt 0:00:02]} axb6 {[%emt 0:00:01]} 35. Rdb5 {[%emt 0:00:03]} d5 {[%emt 0:00:01]} (35... Kf7 $142 36. Rf1+ (36. Rxb6 Rxb6 37. Rxb6 Ra8 $18) 36... Kg7) 36. Rxd5 $18 {[%emt 0:00:09]} Rxd5 {[%emt 0:00:01]} 37. cxd5 {[%emt 0:00:01]} Rxc2+ {[%emt 0:00:01][%mdl 4096] Endgame. KRB-KRN} 38. Kf3 {[%emt 0:00:00]} Bc5 {[%emt 0:00:00]} 39. Ra1 {[%emt 0:00:08]} Rxh2 {[%emt 0:00:02]} 40. Ra8+ {[%emt 0:00:08]} Kf7 {[%emt 0:00:01]} 41. Ra7+ {[%emt 0:00:01]} Ke8 {[%emt 0:00:02] [#]} 42. d6 $1 {[%emt 0:00:01][%cal Bd5d6,Bd6d7][%mdl 32]} Rh1 $2 {[%emt 0:00:07]} (42... Rc2 43. Nf6+ Kf8 44. Ra8+ Kf7) 43. Nf6+ {[%emt 0:00:25]} Kf8 {[%emt 0:00:01]} 44. d7 {[%emt 0:00:04][%cal Rd7d8]} Be7 {[%emt 0:00:03]} (44... Ke7 $2 45. Ra8 Kxf6 46. d8=Q+ $18 (46. d8=R h5 $17)) 45. Nd5 {[%emt 0:00:03] Ra8+ would kill now.} e4+ $2 {[%emt 0:00:07]} (45... Bg5 46. Ra8+ (46. Nxb6 Ke7 $16) 46... Kf7) 46. dxe4 {[%emt 0:00:03] Weighted Error Value: White=0.09 (flawless) /Black=0.20 (precise) .  Mistake:       	White=3     	Black=5      Inaccurate:     	---       	Black=4      OK:         	White=15    	Black=9      Best:        	White=2     	Black=3      Strong:       	White=1     	---} (46. Kg2 $142 Rd1 47. Ra8+ (47. dxe4 b5 $18) (47. Nxb6 Rd2+ 48. Kh3 e3 $11) 47... Kf7 48. Nxe7 (48. d8=R Rd2+ 49. Kh3 Bxd8 $11) (48. dxe4 h5 $18) 48... Rxd3 49. Nxg6 (49. d8=R Kxe7 50. Re8+ Kf6 $18) (49. d8=Q Rxd8 50. Rxd8 Kxe7 $18) (49. d8=B Rd2+ 50. Kf1 e3 $18) 49... Rd2+ 50. Kh3) 1-0

[Event "Vugar Gashimov Memorial Blitz 2024"]
[Site "Shusha"]
[Date "2024.09.28"]
[Round "5.2"]
[White "Rapport, Richard"]
[Black "Artemiev, Vladislav"]
[Result "1/2-1/2"]
[ECO "C78"]
[WhiteElo "2715"]
[BlackElo "2701"]
[Annotator "RC"]
[PlyCount "151"]
[EventDate "2024.09.28"]
[EventType "tourn"]
[EventCountry "AZE"]
[SourceTitle "playchess.com"]
[Source "ChessBase"]
[SourceQuality "1"]
[TimeControl "180+2"]

1. e4 {[%emt 0:00:02]} e5 {[%emt 0:00:01]} 2. Nf3 {[%emt 0:00:01]} Nc6 {[%emt 0:00:01]} 3. Bb5 {[%emt 0:00:01]} a6 {[%emt 0:00:02]} 4. Ba4 {[%emt 0:00:01]} Nf6 {[%emt 0:00:01]} 5. O-O {[%emt 0:00:02]} b5 {[%emt 0:00:08]} 6. Bb3 {[%emt 0:00:01]} Bb7 {[%emt 0:00:01]} 7. d3 {[%emt 0:00:04]} Bc5 {[%emt 0:00:01]} 8. Nc3 {[%emt 0:00:07]} O-O {[%emt 0:00:11]} 9. Nd5 {[%emt 0:00:19]} Nxd5 {[%emt 0:00:11]} 10. Bxd5 {[%emt 0:00:03]} d6 {[%emt 0:00:11]} 11. c3 {[%emt 0:00:08]} Bb6 {[%emt 0:00:18]} 12. h4 {[%emt 0:00:11]} h6 {[%emt 0:00:35]} 13. h5 {[%emt 0:02:28]} Rb8 14. d4 {[%emt 0:00:00]} exd4 {[%emt 0:00:52]} 15. cxd4 {[%emt 0:00:00]} Ne7 {[%emt 0:00:04]} 16. Bxb7 {[%emt 0:00:00]} Rxb7 {[%emt 0:00:01]} 17. Bf4 {[%emt 0:00:00]} Qd7 {[%emt 0:00:08]} 18. Nh4 {[%emt 0:00:00]} Qe6 {[%emt 0:00:03]} 19. Bg3 {[%emt 0:00:00]} Qc4 {[%emt 0:00:23]} 20. e5 {[%emt 0:00:00]} Qxd4 {[%emt 0:00:05]} 21. Qf3 {[%emt 0:00:00]} Qd5 {[%emt 0:00:01]} 22. Nf5 {[%emt 0:00:00]} c6 {[%emt 0:00:09]} 23. Qxd5 {[%emt 0:00:01]} cxd5 {[%emt 0:00:08]} 24. Nxe7+ {[%emt 0:00:04]} Rxe7 {[%emt 0:00:01]} 25. exd6 {[%emt 0:00:01]} Re2 {[%emt 0:00:01]} 26. Rfc1 {[%emt 0:00:09]} f5 {[%emt 0:00:02]} 27. Rc6 {[%emt 0:00:01]} f4 {[%emt 0:00:08]} 28. Bh4 {[%emt 0:00:01]} Bd8 {[%emt 0:00:02]} 29. Kf1 {[%emt 0:00:01]} Rxb2 {[%emt 0:00:01]} 30. Be7 {[%emt 0:00:01]} Bxe7 {[%emt 0:00:02]} 31. dxe7 {[%emt 0:00:01]} Re8 {[%emt 0:00:01]} 32. Re1 {[%emt 0:00:07]} Rxa2 {[%emt 0:00:01]} 33. Rce6 {[%emt 0:00:09]} Ra4 {[%emt 0:00:03]} 34. f3 {[%emt 0:00:01]} Ra3 {[%emt 0:00:01]} 35. Rd1 {[%emt 0:00:04]} Re3 {[%emt 0:00:01]} 36. Rxa6 {[%emt 0:00:01]} R8xe7 {[%emt 0:00:02]} 37. Rd6 {[%emt 0:00:03]} R3e5 {[%emt 0:00:08]} 38. R6xd5 {[%emt 0:00:01]} Rxd5 {[%emt 0:00:01]} 39. Rxd5 {[%emt 0:00:01]} Rb7 {[%emt 0:00:00]} 40. Ke1 {[%emt 0:00:03]} b4 {[%emt 0:00:01]} 41. Kd1 {[%emt 0:00:00]} b3 {[%emt 0:00:01]} 42. Kc1 {[%emt 0:00:01]} b2+ {[%emt 0:00:05]} 43. Kb1 {[%emt 0:00:01]} Rb4 {[%emt 0:00:02]} 44. Rf5 {[%emt 0:00:01]} Kh8 {[%emt 0:00:04]} 45. Rf8+ {[%emt 0:00:01]} Kh7 {[%emt 0:00:01]} 46. Rf7 {[%emt 0:00:03]} Rb5 {[%emt 0:00:03]} 47. Rxf4 {[%emt 0:00:01]} Rxh5 {[%emt 0:00:01]} 48. Kxb2 {[%emt 0:00:01]} Rh2 {[%emt 0:00:01]} 49. Rg4 {[%emt 0:00:03]} h5 {[%emt 0:00:01]} 50. Rg5 {[%emt 0:00:01]} Kh6 {[%emt 0:00:02]} 51. f4 {[%emt 0:00:01]} Rh4 {[%emt 0:00:08]} 52. g3 {[%emt 0:00:00]} Rh2+ {[%emt 0:00:03]} 53. Kc3 {[%emt 0:00:01]} h4 {[%emt 0:00:01]} 54. Rg4 {[%emt 0:00:11]} h3 {[%emt 0:00:02]} 55. Rh4+ {[%emt 0:00:02]} Kg6 {[%emt 0:00:01]} 56. Kd3 {[%emt 0:00:04]} Rh1 {[%emt 0:00:03]} 57. Ke2 {[%emt 0:00:02]} Kf6 {[%emt 0:00:01]} 58. Kf3 {[%emt 0:00:01]} g5 {[%emt 0:00:03]} 59. Rh6+ {[%emt 0:00:01]} Kg7 {[%emt 0:00:01]} 60. fxg5 {[%emt 0:00:01]} h2 {[%emt 0:00:02]} 61. Kg4 {[%emt 0:00:01]} Ra1 {[%emt 0:00:01]} 62. Rxh2 {[%emt 0:00:01]} Ra4+ {[%emt 0:00:01]} 63. Kh5 {[%emt 0:00:01]} Ra1 {[%emt 0:00:02]} 64. Rc2 {[%emt 0:00:02]} Rh1+ {[%emt 0:00:01]} 65. Kg4 {[%emt 0:00:00]} Ra1 {[%emt 0:00:01]} 66. Rc4 {[%emt 0:00:02]} Rb1 {[%emt 0:00:02]} 67. Rc7+ {[%emt 0:00:07]} Kg6 {[%emt 0:00:00]} 68. Rc6+ {[%emt 0:00:01]} Kg7 {[%emt 0:00:01]} 69. g6 {[%emt 0:00:02]} Rb4+ {[%emt 0:00:03]} 70. Kh5 {[%emt 0:00:02]} Rb5+ {[%emt 0:00:01]} 71. Kh4 {[%emt 0:00:01]} Rd5 {[%emt 0:00:01]} 72. g4 {[%emt 0:00:01]} Rb5 {[%emt 0:00:01]} 73. Kg3 {[%emt 0:00:05]} Rg5 {[%emt 0:00:00]} 74. Kf4 {[%emt 0:00:00]} Rxg6 {[%emt 0:00:02]} 75. Rxg6+ {[%emt 0:00:01]} Kxg6 {[%emt 0:00:01]} 76. Ke4 {[%emt 0:00:09]} 1/2-1/2

[Event "Vugar Gashimov Memorial Blitz 2024"]
[Site "Shusha"]
[Date "2024.09.28"]
[Round "5.3"]
[White "Mamedov, Rauf"]
[Black "Nepomniachtchi, Ian"]
[Result "1/2-1/2"]
[ECO "B25"]
[WhiteElo "2637"]
[BlackElo "2755"]
[Annotator "TA"]
[PlyCount "88"]
[EventDate "2024.09.28"]
[EventType "tourn"]
[EventCountry "AZE"]
[SourceTitle "playchess.com"]
[Source "ChessBase"]
[SourceQuality "1"]
[TimeControl "180+2"]

{[%evp 16,88,2,-7,6,8,24,28,60,38,47,0,0,0,0,-37,-30,-31,-18,-14,-15,-39,-31,-70,-79,-79,-93,-91,-99,-115,-102,-141,-151,-154,-135,-305,-28,-38,-26,-16,-14,-14,-16,-14,-19,-25,7,0,0,-22,0,0,0,0,3,-10,-10,-14,0,0,0,0,0,0,0,0,0,0,0,0,0,0,0,0,0]} 1. e4 {[%emt 0:00:01]} c5 {[%emt 0:00:00]} 2. Nf3 {[%emt 0:00:01]} d6 {[%emt 0:00:00]} 3. Nc3 {[%emt 0:00:01]} Nf6 {[%emt 0:00:02]} 4. g3 {[%emt 0:00:06]} g6 {[%emt 0:00:04]} 5. Bg2 {[%emt 0:00:00]} Bg7 {[%emt 0:00:01]} 6. O-O {[%emt 0:00:02]} O-O {[%emt 0:00:01]} 7. Re1 {[%emt 0:00:00]} Nc6 {[%emt 0:00:00]} 8. d3 {[%emt 0:00:01]} Rb8 {[%emt 0:00:02]} 9. a4 {[%emt 0:00:01][%cal Ba2a4,Ba4a5][%mdl 32]} a6 {[%emt 0:00:02]} 10. e5 {[%emt 0:00:00]} dxe5 {[%emt 0:00:40]} 11. Nxe5 {[%emt 0:00:01]} Nd4 {[%emt 0:00:01] White has an edge.} 12. a5 {[%emt 0:00:12]} Be6 {[%emt 0:00:08]} 13. h3 {[%emt 0:00:22]} (13. Na4 $14 {feels stronger.}) 13... Nd5 $11 {[%emt 0:00:05]} 14. Nxd5 {[%emt 0:01:01]} Bxd5 {[%emt 0:00:01]} 15. Nf3 {[%emt 0:00:03]} e6 {[%emt 0:00:20]} 16. h4 {[%emt 0:00:40]} h6 {[%emt 0:00:06]} 17. Bf4 {[%emt 0:00:14]} Rc8 {[%emt 0:00:01]} 18. c3 {[%emt 0:00:01]} Nb3 {[%emt 0:00:15]} 19. Ra3 {[%emt 0:00:07]} Nxa5 {[%emt 0:00:02]} 20. Qc1 {[%emt 0:00:01]} Kh7 {[%emt 0:00:06]} 21. Qc2 {[%emt 0:00:25]} Nc6 {[%emt 0:00:01]} 22. Ra4 {[%emt 0:00:02]} Qd7 {[%emt 0:00:10]} 23. h5 {[%emt 0:00:01]} g5 {[%emt 0:00:10]} ({Much worse is} 23... gxh5 $6 24. d4+ Kg8 25. dxc5 $11) 24. Be3 {[%emt 0:00:01]} Nd4 {[%emt 0:00:12]} 25. Nxd4 {[%emt 0:00:08] [#]} (25. cxd4 $2 {too greedy.} cxd4 26. Rc4 dxe3 27. Rxe3 Bxc4 28. dxc4+ Kg8 $19) (25. Bxd4 $17 {was the only chance.} cxd4 26. Ne5 Bxe5 27. Rxe5 Bxg2 28. Kxg2) 25... cxd4 $2 {[%emt 0:00:10]} (25... Bxg2 $1 $19 26. Kxg2 cxd4) 26. Bxd4 {[%emt 0:00:04]} Bxg2 {[%emt 0:00:02]} 27. Bxg7 $1 {[%emt 0:00:01]} Kxg7 {[%emt 0:00:19]} 28. Kxg2 {[%emt 0:00:01]} Rfd8 {[%emt 0:00:00]} 29. Re3 {[%emt 0:00:05]} Rc5 {[%emt 0:00:05]} 30. Rae4 {[%emt 0:00:04]} Qc6 {[%emt 0:00:02]} 31. Kg1 {[%emt 0:00:02] The position is equal.} b5 {[%emt 0:00:04]} 32. Qe2 {[%emt 0:00:02]} (32. d4 $5 Rf5 $8 33. b3 $11) 32... Rd6 {[%emt 0:00:12]} 33. d4 {[%emt 0:00:03]} Rcd5 {[%emt 0:00:04][%cal Ob5b4]} 34. Re5 {[%emt 0:00:01]} a5 {[%emt 0:00:02]} 35. Rxd5 {[%emt 0:00:02]} Rxd5 {[%emt 0:00:01][%mdl 4096] Endgame. KQR-KQR} 36. Re5 {[%emt 0:00:01]} b4 {[%emt 0:00:03]} (36... Qd6 {simplifies} 37. Kh2 Kf8 38. Qe4 Rxe5 39. dxe5 Qd1) 37. c4 {[%emt 0:00:04]} Rxd4 {[%emt 0:00:12]} 38. Rxg5+ $1 {[%emt 0:00:01]} Kh7 {[%emt 0:00:07]} 39. Rxa5 {[%emt 0:00:02]} Rxc4 {[%emt 0:00:01]} 40. Ra1 {[%emt 0:00:06]} Rc2 {[%emt 0:00:05]} 41. Qd3+ {[%emt 0:00:01]} Kg8 {[%emt 0:00:07] [#] ...Rc1+ would now be deadly.} 42. Qd8+ {[%emt 0:00:03]} Kh7 {[%emt 0:00:00][%cal Oc6f3] ...Qf3! is the strong threat.} 43. Qd3+ {[%emt 0:00:01]} Kg8 {[%emt 0:00:03] Threatens to win with ...Rc1+.} 44. Qd8+ {[%emt 0:00:03]} Kh7 {[%emt 0:00:01] Weighted Error Value: White=0.14 (very precise) /Black=0.18 (very precise) .  Loses game:     	White=1     	---        Missed win:     	---       	Black=1      Mistake:       	White=1     	---        Inaccurate:     	White=3     	Black=2      OK:         	White=15    	Black=15     Best:        	White=1     	---        Strong:       	White=2     	---} 1/2-1/2